bitfinex/quotes_BTCUSD_20240906
["timestamp","ask_amount","ask_price","bid_price","bid_amount"]
[1725612223340,1.04889068,55902.0,55901.0,0.0055975]
[1725612223541,1.04887378,55902.0,55901.0,0.0055975]
[1725612223953,1.32337609,55902.0,55901.0,0.0055975]
[1725612224157,1.81664409,55902.0,55901.0,0.0045975]
[1725612224405,1.81664409,55902.0,55901.0,0.001632]
[1725612224603,1.81764409,55902.0,55901.0,0.001632]
[1725612225191,1.81765113,55902.0,55901.0,0.001632]
[1725612225442,1.87517867,55902.0,55901.0,0.001632]
[1725612225892,2.17541913,55902.0,55901.0,0.001632]
[1725612226355,2.59271467,55902.0,55901.0,0.001632]
[1725612226559,2.19110488,55902.0,55901.0,0.001632]
[1725612229008,2.60640042,55902.0,55901.0,0.001632]
[1725612229231,2.67505424,55902.0,55901.0,0.001632]
[1725612229455,2.68705424,55902.0,55901.0,0.001632]
[1725612229707,2.7671059,55902.0,55901.0,0.001632]
[1725612229932,2.7521059,55902.0,55901.0,0.001632]
[1725612230177,2.7591059,55902.0,55901.0,0.002632]
[1725612230348,2.75910166,55902.0,55901.0,0.002632]
[1725612230591,2.75210166,55902.0,55901.0,0.001632]
[1725612230848,2.76915336,55902.0,55901.0,0.003632]
[1725612231066,2.76115336,55902.0,55901.0,0.002632]
[1725612231275,2.75915336,55902.0,55901.0,0.002632]
[1725612231485,2.68705,55902.0,55901.0,0.003632]
[1725612231915,2.68905,55902.0,55901.0,0.003632]
[1725612232393,2.19410064,55902.0,55901.0,0.002632]
[1725612232639,2.1160069,55902.0,55901.0,0.002632]
[1725612232843,2.06260064,55902.0,55901.0,0.002632]
[1725612233777,2.03574585,55902.0,55901.0,0.002632]
[1725612233980,2.06260311,55902.0,55901.0,0.002632]
[1725612234652,2.11600937,55902.0,55901.0,0.002632]
[1725612235076,2.47377737,55902.0,55901.0,0.002632]
[1725612235303,2.11600937,55902.0,55901.0,0.002632]
[1725612235798,2.06260311,55902.0,55901.0,0.002632]
[1725612236261,2.52727474,55902.0,55901.0,0.002632]
[1725612236465,2.48199043,55902.0,55901.0,0.002632]
[1725612236673,2.64546374,55902.0,55901.0,0.002632]
[1725612236911,2.64546396,55902.0,55901.0,0.002632]
[1725612237123,2.5822036,55902.0,55901.0,0.002632]
[1725612237344,2.69110723,55902.0,55901.0,0.002632]
[1725612237550,2.5842036,55902.0,55901.0,0.002632]
[1725612237763,2.7211036,55902.0,55901.0,0.002632]
[1725612238002,2.7281381,55902.0,55901.0,0.002632]
[1725612238221,2.68449483,55902.0,55901.0,0.002632]
[1725612240189,2.62592515,55902.0,55901.0,0.002632]
[1725612240331,2.62792515,55902.0,55901.0,0.002632]
[1725612240533,2.8449875,55902.0,55901.0,0.002632]
[1725612240760,3.56557283,55902.0,55901.0,1e-06]
[1725612241092,1.95760333,55902.0,55901.0,1e-06]
[1725612241317,0.24134327,55902.0,55901.0,0.30960113]
[1725612241492,0.06245927,55902.0,55901.0,0.31317827]
[1725612241721,0.06245927,55902.0,55901.0,0.25264397]
[1725612241906,0.03560187,55902.0,55901.0,0.43153097]
[1725612242122,0.02560187,55902.0,55901.0,0.8604406]
[1725612242531,0.03560187,55902.0,55901.0,0.3247786]
[1725612242664,0.03560187,55902.0,55901.0,0.5036656]
[1725612242874,0.02560187,55902.0,55901.0,0.5026656]
[1725612243239,0.02660187,55902.0,55901.0,0.8674406]
[1725612243420,0.01806731,55902.0,55901.0,0.8674396]
[1725612243675,0.01807439,55902.0,55901.0,0.8744396]
[1725612243885,0.01907439,55902.0,55901.0,0.8744396]
[1725612244131,0.01807439,55902.0,55901.0,0.8674396]
[1725612244370,0.01907439,55902.0,55901.0,0.8734396]
[1725612244572,0.19695839,55902.0,55901.0,0.3297776]
[1725612245038,0.19795839,55902.0,55901.0,0.3377776]
[1725612245445,0.19695839,55902.0,55901.0,0.3297776]
[1725612245656,0.01807439,55902.0,55901.0,0.3297776]
[1725612245893,0.01907439,55902.0,55901.0,0.3377776]
[1725612246120,0.19795839,55902.0,55901.0,0.3377776]
[1725612246539,1.13253776,55902.0,55901.0,0.26664297]
[1725612246760,1.37914538,55902.0,55901.0,0.26664297]
[1725612247003,1.37914538,55902.0,55901.0,0.86575189]
[1725612247004,0.01907174,55902.0,55901.0,0.86575189]
[1725612247451,0.01906932,55902.0,55901.0,0.52052236]
[1725612247667,0.01906932,55902.0,55901.0,0.50652236]
[1725612247668,0.01706932,55902.0,55901.0,0.50652236]
[1725612247882,0.01806932,55902.0,55901.0,0.51352236]
[1725612248107,0.01906932,55902.0,55901.0,0.52052236]
[1725612248345,0.01806932,55902.0,55901.0,0.51352236]
[1725612248552,0.01906932,55902.0,55901.0,0.52052236]
[1725612248954,0.01706932,55902.0,55901.0,0.50652236]
[1725612249383,0.01806932,55902.0,55901.0,0.51352236]
[1725612249922,0.01806932,55902.0,55901.0,0.87129736]
[1725612250125,0.01806932,55902.0,55901.0,0.33463536]
[1725612250613,0.01806932,55902.0,55901.0,0.25764297]
[1725612250772,0.01706932,55902.0,55901.0,0.25864297]
[1725612250975,0.19695332,55902.0,55901.0,0.25864297]
[1725612251170,0.19795332,55902.0,55901.0,0.26364297]
[1725612251780,0.19795332,55902.0,55901.0,0.33502436]
[1725612251781,0.01906932,55902.0,55901.0,0.33502436]
[1725612251999,0.01906932,55902.0,55901.0,0.51748865]
[1725612252330,0.00228144,55902.0,55901.0,0.87526365]
[1725612252972,0.00228144,55902.0,55901.0,0.51748865]
[1725612253174,0.00228144,55902.0,55901.0,0.87526365]
[1725612253622,0.358511,55914.0,55912.0,0.0029655]
[1725612253838,1.11707174,55913.0,55912.0,0.0029655]
[1725612254228,1.47476974,55913.0,55912.0,0.0029655]
[1725612254896,1.47476974,55913.0,55912.0,0.0119655]
[1725612255129,1.47476974,55913.0,55912.0,0.0059655]
[1725612255355,1.47476974,55913.0,55912.0,0.0089655]
[1725612255556,1.47576974,55913.0,55912.0,0.0129655]
[1725612256886,1.45898636,55913.0,55912.0,0.0129655]
[1725612257126,1.4757717,55913.0,55912.0,0.0129655]
[1725612257352,1.47577168,55913.0,55912.0,0.0129655]
[1725612259112,1.63855371,55913.0,55912.0,0.0129655]
[1725612259597,1.58227168,55913.0,55912.0,0.0129655]
[1725612259849,1.60912617,55913.0,55912.0,0.0129655]
[1725612260317,1.60912585,55913.0,55912.0,0.0129655]
[1725612261043,1.60912585,55913.0,55912.0,0.01]
[1725612261044,1.66540788,55913.0,55912.0,0.01]
[1725612261277,1.60912585,55913.0,55912.0,0.01]
[1725612261730,1.74692585,55913.0,55912.0,0.01]
[1725612263461,2.10462385,55913.0,55912.0,0.01]
[1725612263971,2.10462048,55913.0,55912.0,0.01]
[1725612264236,1.96682048,55913.0,55912.0,0.01]
[1725612264871,2.02024436,55913.0,55912.0,0.01]
[1725612265095,2.02024436,55913.0,55912.0,0.007632]
[1725612265306,2.01924436,55913.0,55912.0,0.001632]
[1725612265529,2.02824436,55913.0,55912.0,0.002632]
[1725612267109,2.02324436,55913.0,55912.0,0.001632]
[1725612267329,2.02724436,55913.0,55912.0,0.001632]
[1725612267550,2.02324436,55913.0,55912.0,0.001632]
[1725612267794,2.02124436,55913.0,55912.0,0.001632]
[1725612268010,1.97760824,55913.0,55912.0,0.002632]
[1725612268238,2.02624361,55913.0,55912.0,0.002632]
[1725612268446,2.02924361,55913.0,55912.0,0.002632]
[1725612268655,2.01924361,55913.0,55912.0,0.001632]
[1725612268882,1.97960824,55913.0,55912.0,0.001632]
[1725612269089,2.02324337,55913.0,55912.0,0.001632]
[1725612270186,2.02524337,55913.0,55912.0,0.001632]
[1725612270394,2.02324337,55913.0,55912.0,0.001632]
[1725612270645,2.02325577,55913.0,55912.0,0.001632]
[1725612270875,2.02125577,55913.0,55912.0,0.001632]
[1725612271092,2.02625577,55913.0,55912.0,0.002632]
[1725612271536,2.02625497,55913.0,55912.0,0.002632]
[1725612272179,2.38095297,55913.0,55912.0,0.001632]
[1725612272416,2.58810197,55913.0,55912.0,0.001632]
[1725612272631,2.15589159,55913.0,55912.0,0.001632]
[1725612272865,2.1291824,55913.0,55912.0,0.001632]
[1725612273067,2.04902562,55913.0,55912.0,0.001632]
[1725612273712,2.12918547,55913.0,55912.0,0.001632]
[1725612274401,2.05102562,55913.0,55912.0,0.001632]
[1725612274612,2.05103067,55913.0,55912.0,0.001632]
[1725612275036,2.51561286,55913.0,55912.0,0.001632]
[1725612275291,2.1579139,55913.0,55912.0,0.001632]
[1725612275514,2.15792116,55913.0,55912.0,0.001632]
[1725612276147,2.05103067,55913.0,55912.0,0.001632]
[1725612276367,2.15792883,55913.0,55912.0,0.001632]
[1725612276595,2.51563448,55913.0,55912.0,0.001632]
[1725612276833,2.15794929,55913.0,55912.0,0.001632]
[1725612277037,2.07523174,55913.0,55912.0,0.001632]
[1725612277263,2.5418585,55913.0,55912.0,0.001632]
[1725612277507,2.18417876,55913.0,55912.0,0.001632]
[1725612277720,2.184201,55913.0,55912.0,0.001632]
[1725612277940,2.54190579,55913.0,55912.0,0.001632]
[1725612278179,2.56934184,55913.0,55912.0,0.001632]
[1725612278409,2.43574574,55913.0,55912.0,0.001632]
[1725612278635,2.43576447,55913.0,55912.0,0.001632]
[1725612279123,2.56936057,55913.0,55912.0,0.001632]
[1725612279366,2.43576447,55913.0,55912.0,0.001632]
[1725612280540,2.15087211,55913.0,55912.0,0.001632]
[1725612280755,2.32972111,55913.0,55912.0,0.001632]
[1725612280990,1.97002311,55913.0,55912.0,0.001632]
[1725612281233,1.84915807,55913.0,55912.0,0.001632]
[1725612281478,2.35955523,55913.0,55912.0,0.001632]
[1725612281769,2.32974507,55913.0,55912.0,0.001632]
[1725612283189,2.43481052,55913.0,55912.0,0.001632]
[1725612283393,2.25051776,55913.0,55912.0,0.001632]
[1725612283730,2.35758321,55913.0,55912.0,0.001632]
[1725612283963,2.35758321,55913.0,55901.0,0.001632]
[1725612283964,1.609956,55902.0,55901.0,0.001632]
[1725612284219,1.75361769,55902.0,55901.0,0.001632]
[1725612285390,1.80715557,55902.0,55901.0,0.001632]
[1725612285621,1.75361769,55902.0,55901.0,0.001632]
[1725612285858,1.80719384,55902.0,55901.0,0.001632]
[1725612286101,1.75361769,55902.0,55901.0,0.001632]
[1725612286333,1.80719421,55902.0,55901.0,0.001632]
[1725612286574,1.80819077,55902.0,55901.0,0.007632]
[1725612286816,1.75561769,55902.0,55901.0,0.014632]
[1725612287052,1.75561769,55902.0,55901.0,0.0175975]
[1725612287694,1.75561769,55902.0,55901.0,0.1215975]
[1725612287904,1.75562587,55902.0,55901.0,0.1215975]
[1725612289883,1.78130962,55902.0,55901.0,0.1215975]
[1725612290113,1.83490941,55902.0,55901.0,0.1215975]
[1725612290325,1.78130962,55902.0,55901.0,0.1215975]
[1725612290756,1.83490008,55902.0,55901.0,0.1215975]
[1725612291213,1.79123021,55902.0,55901.0,0.1215975]
[1725612291445,1.7813013,55902.0,55901.0,0.1215975]
[1725612291659,1.83489176,55902.0,55901.0,0.1215975]
[1725612292281,1.83489147,55902.0,55901.0,0.1215975]
[1725612292491,1.7813013,55902.0,55901.0,0.1215975]
[1725612292712,1.83489147,55902.0,55901.0,0.1215975]
[1725612293582,1.7813013,55902.0,55901.0,0.1215975]
[1725612293784,1.78078028,55902.0,55901.0,0.1215975]
[1725612294462,1.86116691,55902.0,55901.0,0.1215975]
[1725612294681,1.89484886,55902.0,55901.0,0.1215975]
[1725612294888,1.93850926,55902.0,55901.0,0.1215975]
[1725612297315,1.78077913,55902.0,55901.0,0.1215975]
[1725612297543,1.83436741,55902.0,55901.0,0.1215975]
[1725612297752,1.78077913,55902.0,55901.0,0.1215975]
[1725612298171,1.93848857,55902.0,55901.0,0.1215975]
[1725612299011,1.93849246,55902.0,55901.0,0.1215975]
[1725612299433,1.858111,55902.0,55901.0,0.1215975]
[1725612299663,1.96528629,55902.0,55901.0,0.1215975]
[1725612300081,1.99208011,55902.0,55901.0,0.1215975]
[1725612300299,1.858111,55902.0,55901.0,0.1215975]
[1725612300560,1.96529647,55902.0,55901.0,0.1215975]
[1725612300778,0.0456604,55902.0,55901.0,0.32645043]
[1725612301036,0.55544446,55902.0,55901.0,0.32645043]
[1725612301279,1.254188,55902.0,55901.0,0.26301452]
[1725612301503,1.27098229,55902.0,55901.0,0.26301452]
[1725612301715,1.32458693,55902.0,55901.0,0.2509975]
[1725612301948,1.27098229,55902.0,55901.0,0.2509975]
[1725612302153,1.32458693,55902.0,55901.0,0.2509975]
[1725612303460,1.32461216,55902.0,55901.0,0.2509975]
[1725612304337,1.29722999,55902.0,55901.0,0.2509975]
[1725612304554,1.27098229,55902.0,55901.0,0.2509975]
[1725612305359,1.26898229,55902.0,55901.0,0.2509975]
[1725612305905,1.32262894,55902.0,55901.0,0.2509975]
[1725612306952,1.26898229,55902.0,55901.0,0.2509975]
[1725612307397,1.32262894,55902.0,55901.0,0.2509975]
[1725612307590,1.32264193,55902.0,55901.0,0.2509975]
[1725612307813,1.68040993,55902.0,55901.0,0.0175975]
[1725612308025,1.70715496,55902.0,55901.0,0.0175975]
[1725612308678,1.68041316,55902.0,55901.0,0.0175975]
[1725612309083,1.68040794,55902.0,55901.0,0.0175975]
[1725612309300,1.62675029,55902.0,55901.0,0.0175975]
[1725612309514,1.68040794,55902.0,55901.0,0.0175975]
[1725612310220,1.62675029,55902.0,55901.0,0.0175975]
[1725612311594,1.609956,55902.0,55901.0,0.0175975]
[1725612311834,1.6267429,55902.0,55901.0,0.0175975]
[1725612312314,1.6267429,55902.0,55901.0,0.014632]
[1725612312730,2.87015531,55902.0,55901.0,0.014632]
[1725612312733,2.87015531,55902.0,55890.0,0.00164]
[1725612312734,1.610158,55895.0,55890.0,0.00164]
[1725612312963,1.93027403,55895.0,55890.0,0.00164]
[1725612313206,2.40487393,55895.0,55890.0,0.00164]
[1725612314630,2.52103431,55895.0,55890.0,0.00164]
[1725612314865,2.52806881,55895.0,55890.0,0.00164]
[1725612315109,2.57784043,55895.0,55890.0,0.00164]
[1725612315342,2.40987393,55895.0,55890.0,0.00164]
[1725612315586,2.41687393,55895.0,55890.0,0.00164]
[1725612316052,2.40687393,55895.0,55890.0,0.00164]
[1725612316284,2.42587393,55895.0,55890.0,0.00164]
[1725612316532,2.53903431,55895.0,55890.0,0.00164]
[1725612316755,2.53903431,55895.0,55894.0,1e-06]
[1725612316756,2.73900081,55895.0,55894.0,1e-06]
[1725612316972,2.58606881,55895.0,55894.0,1e-06]
[1725612317194,2.88900346,55895.0,55894.0,1e-06]
[1725612317422,3.04956487,55895.0,55894.0,1e-06]
[1725612317648,3.03956487,55895.0,55894.0,1e-06]
[1725612317908,2.68775187,55895.0,55894.0,1e-06]
[1725612318131,2.44590843,55895.0,55894.0,1e-06]
[1725612318382,2.44790843,55895.0,55894.0,1e-06]
[1725612318831,2.55906881,55895.0,55894.0,1e-06]
[1725612319063,2.54506881,55895.0,55894.0,1e-06]
[1725612319294,2.57306881,55895.0,55894.0,1e-06]
[1725612319543,2.93088181,55895.0,55894.0,1e-06]
[1725612319755,2.91688181,55895.0,55894.0,1e-06]
[1725612319984,2.93088181,55895.0,55894.0,1e-06]
[1725612320262,2.57306881,55895.0,55894.0,1e-06]
[1725612320468,2.93088181,55895.0,55894.0,1e-06]
[1725612320673,2.91688181,55895.0,55894.0,1e-06]
[1725612321095,2.95773151,55895.0,55894.0,1e-06]
[1725612321319,2.98073151,55895.0,55894.0,1e-06]
[1725612322426,2.5806875,55891.0,55890.0,1e-06]
[1725612322647,2.85792216,55891.0,55890.0,1e-06]
[1725612322848,2.91280051,55891.0,55890.0,1e-06]
[1725612323327,2.326285,55883.0,55882.0,1e-06]
[1725612323540,2.58380588,55883.0,55882.0,1e-06]
[1725612323748,2.75268689,55883.0,55882.0,1e-06]
[1725612324201,2.80756524,55883.0,55882.0,1e-06]
[1725612324435,2.77953813,55883.0,55882.0,1e-06]
[1725612324901,0.0090345,55882.0,55881.0,1e-06]
[1725612325137,2.90881185,55882.0,55881.0,1e-06]
[1725612325381,2.87691747,55882.0,55881.0,1e-06]
[1725612326063,3.69117747,55882.0,55881.0,1e-06]
[1725612326519,3.83865899,55882.0,55881.0,1e-06]
[1725612326958,4.80227934,55882.0,55881.0,1e-06]
[1725612326959,4.67479782,55882.0,55881.0,1e-06]
[1725612327194,2.576809,55868.0,55867.0,1e-06]
[1725612327426,2.64746407,55868.0,55867.0,1e-06]
[1725612327658,2.74746407,55868.0,55867.0,1e-06]
[1725612328354,1.971242,55859.0,55858.0,1e-06]
[1725612328583,1.971242,55859.0,55838.0,0.14234]
[1725612328584,0.895317,55846.0,55845.0,0.0046055]
[1725612328792,0.895317,55846.0,55845.0,0.2577055]
[1725612329013,0.93891963,55846.0,55845.0,0.33179594]
[1725612329260,0.93891963,55846.0,55845.0,0.34395921]
[1725612329521,0.895317,55846.0,55845.0,0.34395921]
[1725612329923,1.253444,55846.0,55845.0,0.34395921]
[1725612330135,1.27521326,55846.0,55845.0,0.34395921]
[1725612330360,1.27021326,55846.0,55845.0,0.33179594]
[1725612330810,1.27121326,55846.0,55845.0,0.26986877]
[1725612331227,1.62934026,55846.0,55845.0,0.2577055]
[1725612331437,1.27121326,55846.0,55845.0,0.2577055]
[1725612331660,1.27121326,55846.0,55845.0,0.0046055]
[1725612331861,1.75616907,55846.0,55845.0,0.00164]
[1725612332096,1.39904207,55846.0,55845.0,0.0046055]
[1725612332505,1.39704207,55846.0,55845.0,0.0056055]
[1725612332711,1.39704207,55846.0,55845.0,0.0046055]
[1725612332913,1.40404207,55846.0,55845.0,0.0046055]
[1725612333127,1.40904207,55846.0,55845.0,0.0046055]
[1725612333385,1.02408626,55846.0,55845.0,0.32509694]
[1725612333794,1.02408626,55846.0,55845.0,0.26656877]
[1725612334229,1.37521326,55846.0,55845.0,0.26656877]
[1725612334481,1.01708626,55846.0,55845.0,0.26656877]
[1725612334682,1.02008626,55846.0,55845.0,0.2544055]
[1725612334885,1.02008626,55846.0,55845.0,0.26656877]
[1725612335097,1.37821326,55846.0,55845.0,0.26656877]
[1725612335309,0.02476926,55846.0,55845.0,0.2544055]
[1725612335516,0.02476926,55846.0,55845.0,0.26656877]
[1725612336209,0.20083226,55846.0,55845.0,0.26656877]
[1725612336438,0.19583226,55846.0,55845.0,0.26656877]
[1725612336687,0.52650515,55865.0,55856.0,0.0029655]
[1725612336890,0.70550715,55865.0,55864.0,0.0029655]
[1725612337106,0.70550715,55865.0,55864.0,0.1364655]
[1725612337107,0.40161548,55865.0,55864.0,0.1364655]
[1725612337377,0.58061748,55865.0,55864.0,0.14857911]
[1725612337594,0.537007,55865.0,55864.0,0.14857911]
[1725612337802,0.58061949,55865.0,55864.0,0.25547911]
[1725612338255,0.93862449,55865.0,55864.0,0.25547911]
[1725612338500,1.26979086,55865.0,55864.0,0.2433655]
[1725612338726,1.29662904,55865.0,55864.0,0.2433655]
[1725612338947,1.29762904,55865.0,55864.0,0.2433655]
[1725612339199,1.31062904,55865.0,55864.0,0.2433655]
[1725612339694,1.39762904,55865.0,55864.0,0.2433655]
[1725612339929,1.39662904,55865.0,55864.0,0.2433655]
[1725612340155,1.35807833,55865.0,55864.0,0.0039655]
[1725612340390,1.35807833,55865.0,55864.0,0.001]
[1725612340597,1.35807833,55865.0,55864.0,0.0039655]
[1725612341987,1.35806853,55865.0,55864.0,0.0039655]
[1725612342419,1.31446629,55865.0,55864.0,0.0039655]
[1725612342638,1.3580684,55865.0,55864.0,0.0039655]
[1725612345028,1.4647684,55865.0,55864.0,0.0039655]
[1725612345309,1.46476648,55865.0,55864.0,0.0039655]
[1725612345512,1.35806648,55865.0,55864.0,0.0039655]
[1725612348521,1.35806665,55865.0,55864.0,0.0039655]
[1725612349371,1.3860156,55865.0,55864.0,0.0039655]
[1725612349809,1.35806665,55865.0,55864.0,0.0039655]
[1725612351084,1.3841492,55865.0,55864.0,0.0039655]
[1725612351544,1.3849662,55865.0,55864.0,0.0039655]
[1725612353104,1.3849662,55865.0,55864.0,0.2501655]
[1725612353315,1.06551191,55865.0,55864.0,0.2501655]
[1725612353531,1.42351691,55865.0,55864.0,0.2501655]
[1725612353758,1.03942936,55865.0,55864.0,0.2501655]
[1725612353990,0.04441736,55865.0,55864.0,0.32339351]
[1725612354224,0.58142436,55865.0,55864.0,0.32339351]
[1725612354472,0.58142436,55865.0,55864.0,0.26227911]
[1725612354957,0.000817,55865.0,55864.0,0.26227911]
[1725612355151,0.22342979,55865.0,55864.0,0.33532075]
[1725612356993,0.04442779,55865.0,55864.0,0.33532075]
[1725612357420,0.22342979,55865.0,55864.0,0.33532075]
[1725612358093,0.000817,55865.0,55864.0,0.33532075]
[1725612358319,0.04442194,55865.0,55864.0,0.33532075]
[1725612359035,0.04442194,55865.0,55864.0,0.33890054]
[1725612359487,0.04442194,55865.0,55864.0,0.51790654]
[1725612360603,0.04442194,55865.0,55864.0,1.23393054]
[1725612360812,0.01758813,55865.0,55864.0,1.23393054]
[1725612361492,0.04444417,55865.0,55864.0,1.23393054]
[1725612361711,0.581449,55865.0,55864.0,0.26227911]
[1725612361933,0.939454,55865.0,55864.0,0.26127911]
[1725612362148,1.297459,55865.0,55864.0,0.2491655]
[1725612362375,1.297459,55865.0,55864.0,0.2531655]
[1725612362376,0.940454,55865.0,55864.0,0.2531655]
[1725612362628,0.939454,55865.0,55864.0,0.2491655]
[1725612362855,0.939454,55865.0,55864.0,0.26127911]
[1725612363068,0.940454,55865.0,55864.0,0.26527911]
[1725612363281,0.939454,55865.0,55864.0,0.2507975]
[1725612363509,0.940454,55865.0,55864.0,0.2517975]
[1725612363732,0.941454,55865.0,55864.0,0.2557975]
[1725612363960,0.940454,55865.0,55864.0,0.2547975]
[1725612364171,0.96842014,55865.0,55864.0,0.0085975]
[1725612364379,0.941454,55865.0,55864.0,0.0105975]
[1725612364627,0.897829,55865.0,55864.0,0.0105975]
[1725612364835,0.94144657,55865.0,55864.0,0.0105975]
[1725612365077,1.53471351,55865.0,55864.0,0.007632]
[1725612365533,1.93842864,55865.0,55864.0,0.007632]
[1725612365759,2.05059198,55865.0,55864.0,0.007632]
[1725612365995,2.04959198,55865.0,55864.0,0.003632]
[1725612366209,2.51059454,55865.0,55864.0,0.003632]
[1725612366450,2.5464048,55865.0,55864.0,0.003632]
[1725612366682,2.5454048,55865.0,55864.0,0.001632]
[1725612367141,2.5484048,55865.0,55864.0,0.002632]
[1725612367347,2.5413703,55865.0,55864.0,0.002632]
[1725612367556,2.5484048,55865.0,55864.0,0.001632]
[1725612367763,2.5624048,55865.0,55864.0,0.001632]
[1725612367984,2.5553703,55865.0,55864.0,0.001632]
[1725612368201,2.5623853,55865.0,55864.0,0.001632]
[1725612368426,2.46386491,55865.0,55864.0,0.001632]
[1725612368638,2.55839284,55865.0,55864.0,0.001632]
[1725612368866,2.56935834,55865.0,55864.0,0.001632]
[1725612369081,2.57639284,55865.0,55864.0,0.001632]
[1725612369295,2.59239284,55865.0,55864.0,0.001632]
[1725612369514,2.59239388,55865.0,55864.0,0.001632]
[1725612369961,1.253444,55846.0,55845.0,0.0046055]
[1725612370201,1.253444,55846.0,55845.0,0.00164]
[1725612370457,1.75515821,55846.0,55845.0,0.01380327]
[1725612370679,1.75515821,55846.0,55845.0,0.00164]
[1725612371101,1.75515821,55846.0,55845.0,0.0046055]
[1725612371322,1.39703121,55846.0,55845.0,0.0056055]
[1725612371839,1.39803121,55846.0,55845.0,0.0056055]
[1725612372059,1.39803121,55846.0,55845.0,0.0046055]
[1725612372270,1.03990421,55846.0,55845.0,0.0046055]
[1725612372487,1.39803121,55846.0,55845.0,0.1325055]
[1725612372898,1.39903121,55846.0,55845.0,0.1325055]
[1725612373334,1.39703121,55846.0,55845.0,0.0046055]
[1725612374021,1.39703121,55846.0,55845.0,0.0056055]
[1725612374449,1.39703121,55846.0,55845.0,0.0046055]
[1725612374671,1.39803121,55846.0,55845.0,0.0046055]
[1725612374886,1.40303121,55846.0,55845.0,0.0046055]
[1725612375311,1.40103121,55846.0,55845.0,0.0046055]
[1725612375517,1.39703121,55846.0,55845.0,0.0046055]
[1725612375749,1.39703121,55846.0,55845.0,0.0056055]
[1725612375963,1.03890421,55846.0,55845.0,0.2553055]
[1725612376401,1.39803121,55846.0,55845.0,0.01776877]
[1725612376649,1.39803121,55846.0,55845.0,0.0056055]
[1725612376865,1.03990421,55846.0,55845.0,0.0056055]
[1725612377068,1.03990421,55846.0,55845.0,0.0046055]
[1725612377277,1.39803121,55846.0,55845.0,0.0056055]
[1725612378665,1.39803121,55846.0,55845.0,0.0046055]
[1725612378885,1.39703121,55846.0,55845.0,0.0046055]
[1725612379091,1.40703121,55846.0,55845.0,0.0046055]
[1725612379275,1.40303121,55846.0,55845.0,0.0046055]
[1725612379547,0.86584121,55846.0,55845.0,0.0046055]
[1725612379761,1.04490421,55846.0,55845.0,0.0046055]
[1725612379988,1.42955592,55846.0,55845.0,0.0046055]
[1725612380630,1.37996871,55846.0,55845.0,0.0046055]
[1725612380840,1.42350124,55846.0,55845.0,0.0056055]
[1725612381036,1.53320124,55846.0,55845.0,0.00264]
[1725612381287,1.89132824,55846.0,55845.0,0.00264]
[1725612381755,1.90254824,55846.0,55845.0,0.00264]
[1725612381969,1.40819653,55846.0,55845.0,0.2444055]
[1725612382207,1.03884953,55846.0,55845.0,0.2444055]
[1725612382468,1.03885198,55846.0,55845.0,0.2444055]
[1725612383267,1.39697898,55846.0,55845.0,0.2444055]
[1725612383534,1.50237898,55846.0,55845.0,0.00264]
[1725612383745,1.40819827,55846.0,55845.0,0.00264]
[1725612383966,1.40819801,55846.0,55845.0,0.00264]
[1725612384189,1.40819801,55846.0,55845.0,0.0056055]
[1725612384833,1.4081964,55846.0,55845.0,0.0056055]
[1725612385303,1.39697718,55846.0,55845.0,0.0056055]
[1725612386003,1.03885018,55846.0,55845.0,0.2491055]
[1725612386441,1.39697718,55846.0,55845.0,0.0056055]
[1725612386656,1.03885018,55846.0,55845.0,0.0056055]
[1725612386921,0.04353318,55846.0,55845.0,1.03229678]
[1725612387139,0.537834,55864.0,55863.0,0.2464655]
[1725612387378,0.58138683,55864.0,55863.0,0.25858173]
[1725612387592,0.04436883,55864.0,55863.0,0.25858173]
[1725612388020,0.01756709,55864.0,55863.0,0.25858173]
[1725612388231,0.19657309,55864.0,55863.0,0.25858173]
[1725612388442,0.22337587,55864.0,55863.0,0.25858173]
[1725612388646,0.22337587,55864.0,55863.0,0.2464655]
[1725612388878,0.22337587,55864.0,55863.0,0.25858173]
[1725612389119,0.04436987,55864.0,55863.0,0.25858173]
[1725612389346,0.04536987,55864.0,55863.0,0.26158173]
[1725612390009,0.002816,55864.0,55863.0,0.26358173]
[1725612390224,0.01957704,55864.0,55863.0,0.26358173]
[1725612390435,0.04639471,55864.0,55863.0,0.26358173]
[1725612390667,0.181822,55864.0,55863.0,0.26358173]
[1725612390934,0.539834,55864.0,55863.0,0.26358173]
[1725612391154,0.539834,55864.0,55863.0,0.01711623]
[1725612391155,1.50914269,55864.0,55863.0,0.01711623]
[1725612391386,1.86715469,55864.0,55863.0,0.01711623]
[1725612391628,1.86715469,55864.0,55863.0,0.005]
[1725612392089,1.87737094,55864.0,55863.0,0.002]
[1725612392516,1.87837094,55864.0,55863.0,0.005]
[1725612392730,1.87737094,55864.0,55863.0,0.002]
[1725612392953,1.87737094,55864.0,55855.0,0.0029655]
[1725612393184,1.25322,55856.0,55855.0,0.0029655]
[1725612393400,1.40802094,55856.0,55855.0,0.0029655]
[1725612394936,1.40802094,55856.0,55855.0,0.0049655]
[1725612396511,1.40802094,55856.0,55855.0,0.0079655]
[1725612396737,1.40802094,55856.0,55855.0,0.005]
[1725612397227,1.40802094,55856.0,55855.0,0.0079655]
[1725612398439,1.18581255,55856.0,55855.0,0.0079655]
[1725612398660,1.36484355,55856.0,55855.0,0.0079655]
[1725612399357,1.36484355,55856.0,55855.0,0.1463655]
[1725612399358,1.00678055,55856.0,55855.0,0.1463655]
[1725612399571,1.00678055,55856.0,55855.0,0.2619655]
[1725612399985,0.99558895,55856.0,55855.0,0.2619655]
[1725612400208,1.35365195,55856.0,55855.0,0.2619655]
[1725612400423,1.71171495,55856.0,55855.0,0.005]
[1725612401321,1.72293207,55856.0,55855.0,0.005]
[1725612402896,1.75088678,55856.0,55855.0,0.005]
[1725612403142,1.75088304,55856.0,55855.0,0.005]
[1725612403350,1.67932273,55856.0,55855.0,0.005]
[1725612403567,1.72292625,55856.0,55855.0,0.003]
[1725612404012,1.72692625,55856.0,55855.0,0.003]
[1725612404471,1.72292625,55856.0,55855.0,0.003]
[1725612404713,1.72692625,55856.0,55855.0,0.003]
[1725612404940,1.253266,55854.0,55853.0,0.0029655]
[1725612405200,1.253357,55850.0,55849.0,0.0029655]
[1725612405421,1.30817764,55850.0,55849.0,0.0029655]
[1725612406748,1.30820222,55850.0,55849.0,0.0029655]
[1725612407835,1.30820222,55850.0,55849.0,0.0049655]
[1725612408384,1.33716861,55850.0,55849.0,0.1393655]
[1725612410298,1.30920222,55850.0,55849.0,0.1393655]
[1725612410943,1.30920222,55850.0,55849.0,0.0079655]
[1725612413582,1.30921005,55850.0,55849.0,0.0079655]
[1725612416179,1.30921005,55850.0,55849.0,0.2583655]